Cogmind - Beta 10.2 @@@ ROGUE MODE // 2022.01.19 @ 10:51:56 Player: Phaethon Result: Escaped! Performance ------------- Evolutions (9) 4500 Regions Visited (31) 6200 Robots Destroyed (365) 1825 Value Destroyed (14467) 14467 Prototype IDs (98) 1960 Alien Tech Used (2) 400 Bonus (8717) 8717 TOTAL SCORE: 38069 Bonus ------- High Alert Combat Kills 1248 Follower Combat Kills 1784 Network Hubs Disabled 400 Aligned with FarCom 300 Met Data Miner 300 Met Zhirov 300 Built Enhanced Grunts 300 A7 Reached Mainframe 300 Met R17 at Cetus 500 Read Decrypted Archives 300 Found Hidden Lab 3000 Met R17 at Research 2000 Win 3000 Friendly Fire -5015 Cogmind --------- Core Integrity 1600/1600 Matter 300/300 Energy 1076/1080 System Corruption 0% Temperature Cool (0) Movement Rolling (110) Ox2 Location To Epsilon Eridani Parts ------- > --- POWER (2) -------- Light Quantum Reactor Light Quantum Reactor > --- PROPULSION (4) --- Centrium Wheel Centrium Wheel Centrium Wheel High-density Centrium Wheel > --- UTILITY (15) ----- Advanced Cooling System High-capacity Storage Unit High-capacity Storage Unit High-capacity Storage Unit Advanced Energy Well Experimental Terrain Scanner Experimental Terrain Scan Processor Advanced Targeting Computer Recoil Nullifier Improved Weapon Cycler Centrium Medium Armor Plating AEGIS Remote Shield Deep Network Scanner Quantum Router > --- WEAPON (4) ------- Enhanced Nova Cannon Heavy Machine Gun KE Penetrator Hypervelocity Railgun > --- INVENTORY (28) --- Particle Reactor Centrium Wheel Improved Fusion Compressor Advanced Coolant Injector Experimental Matter Compressor (500) Advanced Terrain Scan Processor Advanced Targeting Computer Recoil Nullifier Particle Accelerator Centrium Medium Armor Plating Centrium Medium Armor Plating Centrium Medium Armor Plating Centrium Medium Armor Plating Experimental Thermal Shield Antimissile System Mobile Refinery Mk. CCLXVII Transdimensional Reconstructor Transdimensional Reconstructor Core Regenerator Hypervelocity EM Gauss Rifle HERF Cannon Enhanced Nova Cannon Enhanced Nova Cannon Warp Cannon Railgun Neutron Missile Launcher Peak State ------------ > --- POWER ------------ Light Quantum Reactor Light Quantum Reactor > --- PROPULSION ------- Centrium Wheel Centrium Wheel Centrium Wheel High-density Centrium Wheel > --- UTILITY ---------- Advanced Cooling System High-capacity Storage Unit High-capacity Storage Unit High-capacity Storage Unit Advanced Energy Well Experimental Terrain Scanner Experimental Terrain Scan Processor Advanced Targeting Computer Recoil Nullifier Particle Accelerator Improved Weapon Cycler Centrium Medium Armor Plating AEGIS Remote Shield Deep Network Scanner Quantum Router > --- WEAPON ----------- Enhanced Nova Cannon Heavy Machine Gun KE Penetrator Hypervelocity Railgun > --- INVENTORY -------- Particle Reactor Centrium Wheel Improved Fusion Compressor Advanced Coolant Injector Experimental Matter Compressor Advanced Terrain Scan Processor Advanced Targeting Computer Recoil Nullifier Centrium Medium Armor Plating Centrium Medium Armor Plating Centrium Medium Armor Plating Centrium Medium Armor Plating Experimental Thermal Shield Antimissile System Mobile Refinery Mk. CCLXVII Supersonic Drone Bay Transdimensional Reconstructor Transdimensional Reconstructor Core Regenerator Hypervelocity EM Gauss Rifle HERF Cannon Enhanced Nova Cannon Enhanced Nova Cannon Warp Cannon Railgun Neutron Missile Launcher [Rating: 188] Favorites ----------- Power Antimatter Reactor Engine Improved Ion Engine Power Core Enhanced Fission Core Reactor Antimatter Reactor Propulsion Armored Huge Wheel Wheel Armored Huge Wheel Utility High-capacity Storage Unit Device Long-range Terrain Scanner Storage High-capacity Storage Unit Processor Experimental Terrain Scan Processor Hackware System Mapper Protection Layered Medium Armor Plating Weapon Flak Gun Energy Gun Heavy Beamcaster Energy Cannon Heavy Neutron Cannon Ballistic Gun Flak Gun Ballistic Cannon Assault Cannon Launcher Heavy Rocket Launcher Special Weapon Molecular Deconstructor Impact Weapon Mace Slashing Weapon Great Axe Piercing Weapon CR-A16's Pointy Stick Build | -11 -10 -10 -9 -9 -9 -8 -8 -7 -7 -7 -6 -6 -6 -6 -6 -5 -5 -5 -5 -5 -4 -4 -4 -4 -4 -4 -3 -3 -3 -2 -1 ------- Run | Scr Mat Min Mat Min Exi Min Mat Fac Low Dat Pro Fac Low Low Zio Pro Fac Upp Upp Zhi Pro Fac Ext Cet Arc Hub Res Arm Lab Res Acc Slots Evolved 18 | . . . 2 . . . 2 2 . . . 2 . . . . 2 . . . . 2 . . . . 2 . . 2 2 Power 1 | . . . . . . . . . . . . . . . . . . . . . . . . . . . . . . . 1 Propulsion 2 | . . . . . . . 1 . . . . 1 . . . . . . . . . . . . . . . . . . . Utility 13 | . . . 1 . . . 1 2 . . . 1 . . . . 2 . . . . 1 . . . . 2 . . 2 1 Weapon 2 | . . . 1 . . . . . . . . . . . . . . . . . . 1 . . . . . . . . . Parts Attached 438 | 7 15 2 31 4 5 3 24 35 . 29 4 17 3 1 4 15 31 10 12 9 7 33 31 13 . 16 23 17 9 25 3 Power 30 | 1 4 . 4 . . . 1 . . 3 . . . . . 1 3 . . . . 1 1 2 . . 2 3 . 3 1 Engine 11 | 1 4 . 4 . . . 1 . . . . . . . . . 1 . . . . . . . . . . . . . . Core 3 | . . . . . . . . . . . . . . . . . 2 . . . . . 1 . . . . . . . . Reactor 16 | . . . . . . . . . . 3 . . . . . 1 . . . . . 1 . 2 . . 2 3 . 3 1 Propulsion 51 | 2 3 . 5 . . 1 6 5 . 2 . 1 . . . 1 4 1 1 . 2 3 3 1 . 2 4 1 . 3 . Treads . | . . . . . . . . . . . . . . . . . . . . . . . . . . . . . . . . Leg . | . . . . . . . . . . . . . . . . . . . . . . . . . . . . . . . . Wheel 51 | 2 3 . 5 . . 1 6 5 . 2 . 1 . . . 1 4 1 1 . 2 3 3 1 . 2 4 1 . 3 . Hover . | . . . . . . . . . . . . . . . . . . . . . . . . . . . . . . . . Flight . | . . . . . . . . . . . . . . . . . . . . . . . . . . . . . . . . Utility 197 | 2 4 . 4 . 5 . 8 20 . 17 . 12 2 . 3 4 14 7 6 4 3 14 16 5 . 8 13 9 6 9 2 Device 112 | . . . . . 3 . 2 12 . 4 . 8 2 . 3 2 7 7 4 1 1 10 14 4 . 5 8 6 2 5 2 Storage 21 | 2 4 . . . 2 . . 2 . 2 . 1 . . . . . . . 1 . . . . . . 1 1 4 1 . Processor 10 | . . . . . . . . 2 . 3 . . . . . . 3 . . . 1 . . . . . . . . 1 . Hackware 9 | . . . . . . . 1 2 . . . 1 . . . . 2 . . . . 1 . . . . 1 . . 1 . Protection 45 | . . . 4 . . . 5 2 . 8 . 2 . . . 2 2 . 2 2 1 3 2 1 . 3 3 2 . 1 . Artifact . | . . . . . . . . . . . . . . . . . . . . . . . . . . . . . . . . Weapon 160 | 2 4 2 18 4 . 2 9 10 . 7 4 4 1 1 1 9 10 2 5 5 2 15 11 5 . 6 4 4 3 10 . Energy Gun 25 | . . . 7 . . 1 2 2 . 3 . . . . . . 2 1 1 1 . 1 2 . . . . . 1 1 . Energy Cannon 25 | . 2 . . . . . . . . . 2 . 1 . . 2 2 . . . . 5 2 . . 1 1 2 1 4 . Ballistic Gun 87 | 2 2 1 7 2 . . 6 6 . 3 2 4 . 1 1 4 5 1 4 2 2 9 5 5 . 5 3 1 1 3 . Ballistic Cannon 1 | . . . 1 . . . . . . . . . . . . . . . . . . . . . . . . . . . . Launcher 16 | . . 1 3 2 . 1 1 1 . . . . . . . 2 . . . . . . 2 . . . . 1 . 2 . Special Weapon 1 | . . . . . . . . . . . . . . . . . . . . 1 . . . . . . . . . . . Impact Weapon 2 | . . . . . . . . 1 . . . . . . . . 1 . . . . . . . . . . . . . . Slashing Weapon 1 | . . . . . . . . . . 1 . . . . . . . . . . . . . . . . . . . . . Piercing Weapon 2 | . . . . . . . . . . . . . . . . 1 . . . 1 . . . . . . . . . . . Special Melee Weapon . | . . . . . . . . . . . . . . . . . . . . . . . . . . . . . . . . Unidentified Prototypes 29 | . . . 3 . . . . 2 . 2 . . . . 2 . 3 . . 5 . . 1 3 . . 1 4 3 . . Parts Lost 72 | . 3 . 1 . . 2 2 . . 9 . . . . 1 7 . 1 4 . 5 11 7 2 . 8 . 2 . 7 . Power 6 | . 1 . . . . . . . . 1 . . . . . 1 . . . . . 1 . 1 . 1 . . . . . Propulsion 14 | . . . 1 . . 1 1 . . 1 . . . . . 1 . 1 1 . . 2 1 1 . 1 . 1 . 1 . Utility 22 | . . . . . . . . . . 5 . . . . . 1 . . . . 4 3 3 . . 2 . 1 . 3 . Weapon 30 | . 2 . . . . 1 1 . . 2 . . . . 1 4 . . 3 . 1 5 3 . . 4 . . . 3 . Highest Loss Streak 9 | . 1 . 1 . . 2 1 . . 9 . . . . 1 3 . 1 2 . 4 5 5 2 . 8 . 1 . 6 . Average Slot Usage (%) 92 | . 98 100 99 100 98 89 90 91 92 85 92 85 86 86 85 85 92 93 91 87 83 88 93 93 94 94 95 99 99 99 96 Engine 3 | . 13 14 11 11 11 11 9 7 7 3 . . . . . . . 5 5 5 5 . . . . . . . . . . Reactor 2 | . . . . . . . . . . 1 7 6 6 6 6 5 2 . . . . 4 . 3 5 5 4 4 4 4 6 Wheel 16 | . 28 28 22 22 22 18 24 15 15 12 15 13 13 13 13 12 16 16 14 11 11 14 14 15 15 15 16 18 19 17 16 Device 11 | . . . . . 3 11 . 13 7 4 7 12 13 13 12 12 9 10 11 11 5 10 16 18 21 21 22 26 26 20 22 Storage 14 | . 28 28 22 22 21 22 18 15 15 12 15 13 13 13 13 13 11 11 11 11 11 10 10 10 10 10 9 9 9 16 16 Processor 5 | . . . . . . . . . 7 15 15 7 6 6 6 6 11 11 11 11 14 11 7 5 5 5 4 4 4 7 8 Hackware 5 | . . . . . . . 3 8 . . . 4 6 6 6 6 6 5 5 5 5 9 10 10 10 9 9 9 9 9 8 Protection 7 | . . . 10 11 6 . 9 7 15 10 7 6 6 6 6 6 10 11 10 10 8 4 6 7 5 4 9 5 4 4 4 Energy Gun 1 | . . . 2 11 11 9 2 . . 6 . . . . . . 1 4 3 5 . . 5 . . . . . 2 . . Energy Cannon 1 | . 4 . . . . . . . . . 1 . 5 1 . . 2 . . . . 1 5 . . 2 3 4 4 5 4 Ballistic Gun 17 | . 22 27 28 22 22 15 23 22 23 14 20 18 13 17 20 17 11 11 12 7 16 18 8 21 21 17 13 14 11 10 12 Naked Turns . | . . . . . . . . . . . . . . . . . . . . . . . . . . . . . . . . Heaviest Build 189 | 16 76 75 90 83 83 82 96 98 98 102 107 108 108 108 103 110 114 108 109 109 111 129 134 126 120 128 138 142 171 184 189 Greatest Support 68 | 26 32 20 32 26 26 26 48 44 38 38 38 56 56 56 56 56 56 52 56 56 56 56 60 60 48 64 64 64 64 68 68 Greatest Overweight (x) 4 | 1 3 3 4 3 3 4 3 3 2 4 2 2 1 1 1 1 2 2 2 1 1 2 2 2 2 2 2 2 2 2 2 Average Overweight (x) 1 | . 1 3 2 3 2 3 2 2 2 2 2 1 1 1 1 1 1 1 1 1 1 1 1 1 2 1 1 1 1 2 2 Largest Inventory Capacity 32 | 8 20 20 20 20 32 20 20 20 20 20 20 20 20 20 20 20 20 20 20 20 20 20 20 20 20 20 20 20 28 28 28 Average Capacity 20 | 6 18 20 20 20 19 20 20 20 20 16 20 20 20 20 20 20 20 20 20 20 20 20 20 20 20 20 20 20 14 28 28 Most Carried 28 | 2 20 20 20 20 20 20 20 20 20 20 20 20 20 20 20 20 20 20 20 20 20 20 20 20 20 20 20 20 26 28 27 Average Carried 19 | . 11 20 19 20 19 20 19 19 18 13 19 19 20 20 19 18 19 19 18 19 19 19 17 19 20 19 15 19 11 25 26 Final Capacity 28 | 8 20 20 20 20 20 20 20 20 20 20 20 20 20 20 20 20 20 20 20 20 20 20 20 20 20 20 20 20 28 28 28 Final Carried 28 | 2 20 20 20 20 20 20 20 18 19 20 20 20 20 20 20 18 20 19 20 20 20 18 20 20 20 17 20 20 26 28 26 Class Distribution -------------------- 18% | Hacker-Skirmisher 15% | Hacker-Mutant 14% | Scavenger-Skirmisher 11% | Hauler-Skirmisher 8% | Scavenger-Mutant 7% | Hauler-Mutant 7% | Hauler-Tank 6% | Hacker-Tank 5% | Hacker-Gunner Dominant Class ---------------- Hauler-Mutant | -10/Materials Hauler-Mutant | -10/Mines Hauler-Tank | -9/Materials Hauler-Tank | -9/Mines Hauler-Tank | -9/Exiles Hauler-Mutant | -8/Mines Scavenger-Skirmisher | -8/Materials Hauler-Skirmisher | -7/Factory Hauler-Skirmisher | -7/Lower Caves Hauler-Skirmisher | -7/Data Miner Hauler-Skirmisher | -6/Proximity Caves Scavenger-Skirmisher | -6/Factory Scavenger-Mutant | -6/Lower Caves Scavenger-Skirmisher | -6/Lower Caves Scavenger-Skirmisher | -6/Zion Scavenger-Skirmisher | -5/Proximity Caves Scavenger-Mutant | -5/Factory Hacker-Mutant | -5/Upper Caves Hacker-Tank | -5/Upper Caves Hacker-Mutant | -5/Zhirov Hacker-Gunner | -4/Proximity Caves Hacker-Gunner | -4/Factory Hacker-Skirmisher | -4/Extension Hacker-Skirmisher | -4/Cetus Hacker-Skirmisher | -4/Archives Hacker-Mutant | -4/Hub_04(d) Hacker-Skirmisher | -3/Research Hacker-Skirmisher | -3/Armory Hacker-Mutant | -3/Lab Hacker-Skirmisher | -2/Research Hacker-Mutant | -1/Access Resources | -11 -10 -10 -9 -9 -9 -8 -8 -7 -7 -7 -6 -6 -6 -6 -6 -5 -5 -5 -5 -5 -4 -4 -4 -4 -4 -4 -3 -3 -3 -2 -1 ----------- Run | Scr Mat Min Mat Min Exi Min Mat Fac Low Dat Pro Fac Low Low Zio Pro Fac Upp Upp Zhi Pro Fac Ext Cet Arc Hub Res Arm Lab Res Acc Matter Collected 13503 | 216 550 70 1051 31 . 175 634 825 47 463 50 464 36 160 . 513 1026 235 449 101 359 1000 796 819 . 82 557 1094 228 1400 72 Remotely . | . . . . . . . . . . . . . . . . . . . . . . . . . . . . . . . . Salvage Created 18328 | 50 976 11 1819 43 . 204 955 882 47 463 . 603 . 164 . 696 1853 221 500 331 462 1352 1482 517 . 549 307 1523 . 2198 120 Parts 843 | 2 57 2 102 7 . 6 55 41 1 40 . 23 . 13 . 16 85 9 17 7 36 72 29 21 . 14 12 64 . 109 3 Haulers Intercepted 18 | . 2 . 5 . . . 4 1 . . . . . . . . 2 . . . . . . . . . 2 . . 1 1 Recyclers Shooed 14 | . 1 . 3 . . . 3 1 . . . 3 . . . . . . . . . . 1 . . . . . . 2 . Parts Field Recycled . | . . . . . . . . . . . . . . . . . . . . . . . . . . . . . . . . Retrieved Matter . | . . . . . . . . . . . . . . . . . . . . . . . . . . . . . . . . Parts Self-Destructed 94 | . . . . . . . . . 1 . 3 . . 15 . 8 . 10 15 7 35 . . . . . . . . . . Prevented 6 | . . . . . . . . . . . 5 . . . . . . 1 . . . . . . . . . . . . . Kills | -11 -10 -10 -9 -9 -9 -8 -8 -7 -7 -7 -6 -6 -6 -6 -6 -5 -5 -5 -5 -5 -4 -4 -4 -4 -4 -4 -3 -3 -3 -2 -1 ------- Run | Scr Mat Min Mat Min Exi Min Mat Fac Low Dat Pro Fac Low Low Zio Pro Fac Upp Upp Zhi Pro Fac Ext Cet Arc Hub Res Arm Lab Res Acc Combat Hostiles Destroyed 252 | . 14 3 29 7 . 3 15 10 2 4 . 6 . 6 . 8 19 6 8 . 15 19 21 5 . 2 1 27 . 22 . Guns 180 | . 10 . 20 . . 2 13 10 2 3 . 6 . 6 . 2 17 6 8 . 15 18 7 5 . 2 1 21 . 6 . Cannons 30 | . 4 . 2 . . . . . . . . . . . . 1 2 . . . . 1 11 . . . . 3 . 6 . AOE 41 | . . 3 7 7 . 1 2 . . . . . . . . 5 . . . . . . 3 . . . . 3 . 10 . Classes Destroyed 16 | 1 6 1 3 . . . 1 1 . . . . . . . 1 . . 1 . . . 1 . . . . . . . . Worker 31 | . 1 . 2 . . 2 2 3 . . . . . . . . 10 . . . . 2 . . . 4 1 . . 4 . Builder 15 | . 1 . 2 . . 2 . . . . . . . . . . 1 . . . . 1 1 . . 1 1 . . 5 . Tunneler 3 | . . . 1 . . . . . . . . 1 . . . . . . . . . . . . . 1 . . . . . Hauler 18 | . 2 . 5 . . . 4 1 . . . . . . . . 2 . . . . . . . . . 2 . . 1 1 Recycler 26 | 1 2 . 4 . . . 2 3 . . . 2 . . . . 2 . . . . 1 2 . . 2 . . . 5 . Mechanic 1 | . . . . . . . . . . . . . . . . . . . . . . . 1 . . . . . . . . Operator 6 | . 2 . 1 . . . 1 1 . . . . . . . . 1 . . . . . . . . . . . . . . Watcher 10 | . 2 . 3 . . . 1 . . . . . . . . . 1 . . . . 1 . 1 . . . . . 1 . Swarmer 64 | . . 3 3 7 . . 6 4 2 . . 2 . 6 . . . 5 . . 13 2 . . . . . 11 . . . Grunt 92 | . 14 . 15 . . 3 4 3 . . . . . . . 5 9 . 5 . . 6 10 2 . . . 8 . 8 . Brawler 3 | . . . . . . . . . . . . . . . . . . . 1 . . . 1 . . . . 1 . . . Duelist 3 | . . . 1 . . . . . . . . . . . . . . . . . . . 1 . . . . . . 1 . Sentry 41 | . . . 10 . . . 3 2 . . . 3 . . . 1 4 1 . . 1 2 7 . . 1 1 3 . 2 . Demolisher 1 | . . . . . . . . . . . . . . . . 1 . . . . . . . . . . . . . . . Hunter 10 | . . . . . . . 2 . . . . . . . . 1 1 . 2 . 1 . 1 . . . . . . 2 . Programmer 31 | . . . . . . . . 1 . . . 1 . . . . 5 . . . . 9 1 . . 1 . 4 . 9 . Cetus Guard 3 | . . . . . . . . . . . . . . . . . . . . . . . . 3 . . . . . . . Enhanced Grunt 4 | . . . . . . . . . . 4 . . . . . . . . . . . . . . . . . . . . . Guerrilla 1 | . . . . . . . . . . . . . . . . . . . . . . . . 1 . . . . . . . Best Kill Streak 14 | 1 4 3 14 4 . 7 5 5 2 2 . 2 . 4 . 5 11 5 3 . 5 8 9 4 . 7 2 7 . 13 1 Combat Bots Only 7 | . 3 3 7 4 . 3 5 4 2 2 . 2 . 4 . 5 5 5 3 . 5 6 7 4 . 1 1 7 . 7 . Max Kills in Single Turn 5 | 1 1 2 3 4 . 2 2 2 1 1 . 1 . 2 . 3 2 1 1 . 2 2 2 1 . 5 1 3 . 5 1 Gunslinging 1 | . . . . . . . . . . . . . . . . . . . . . 1 . . . . . . . . . . Exploded 4 | . . 2 3 4 . 1 2 . . . . . . . . 3 . . . . . . 2 . . . . 3 . 3 . Melee . | . . . . . . . . . . . . . . . . . . . . . . . . . . . . . . . . Uniques/NPCs Destroyed 2 | . . . . . . . . . . 1 . . . . . . . . . . . . . 1 . . . . . . . Data Miner (-7/Data Miner) A7 (-4/Cetus) Combat | -11 -10 -10 -9 -9 -9 -8 -8 -7 -7 -7 -6 -6 -6 -6 -6 -5 -5 -5 -5 -5 -4 -4 -4 -4 -4 -4 -3 -3 -3 -2 -1 -------- Run | Scr Mat Min Mat Min Exi Min Mat Fac Low Dat Pro Fac Low Low Zio Pro Fac Upp Upp Zhi Pro Fac Ext Cet Arc Hub Res Arm Lab Res Acc Damage Taken 19852 | . 503 80 1066 104 . 238 609 366 104 1978 295 344 165 316 . 1235 871 545 918 . 1473 2255 1327 631 . 1741 294 908 . 1486 . Core 1928 | . 111 8 130 10 . 14 54 37 . 337 20 50 32 33 . 99 81 113 85 . 95 153 143 95 . 100 64 41 . 23 . Absorbed by Shields 2068 | . . . . . . . . . . . . . . . . . . 209 333 . 114 . 44 251 . . 67 361 . 689 . Core Remaining (%) 75 | 100 . 52 . . . 61 90 . . . 43 . . . . 74 . . . . 62 . . . . 57 . . 91 98 100 Volleys Fired 999 | 3 84 6 83 3 . 17 52 36 4 22 4 24 26 12 . 34 121 21 40 . 28 75 58 37 . 8 20 72 20 80 9 Largest 4 | 2 2 2 3 3 . 3 3 3 3 3 1 3 1 3 . 3 3 3 3 . 3 4 4 4 . 4 4 4 1 4 4 Hottest 350 | 40 80 50 127 109 . 102 109 84 84 160 90 90 90 90 . 150 150 82 94 . 94 198 350 136 . 213 201 225 120 315 223 Shots Fired 2562 | 6 165 12 240 9 . 33 149 107 12 53 4 64 26 32 . 69 242 51 108 . 84 233 170 147 . 29 55 229 19 196 18 Gun 2135 | 6 145 10 208 6 . 30 148 107 12 53 . 60 . 30 . 50 197 51 108 . 84 214 92 147 . 26 41 168 . 133 9 Cannon 394 | . 20 . 27 . . . . . . . 4 4 26 2 . 10 45 . . . . 19 74 . . 3 14 61 19 57 9 Launcher 33 | . . 2 5 3 . 3 1 . . . . . . . . 9 . . . . . . 4 . . . . . . 6 . Special . | . . . . . . . . . . . . . . . . . . . . . . . . . . . . . . . . Kinetic 1970 | 6 145 10 214 3 . 18 125 107 12 27 . 60 . 30 . 50 184 30 90 . 81 211 48 147 . 26 41 168 . 128 9 Thermal 516 | . 20 . 21 3 . 12 11 . . . 4 4 26 2 . 10 58 21 18 . 3 22 118 . . 3 14 61 19 57 9 Explosive 33 | . . 2 5 3 . 3 1 . . . . . . . . 9 . . . . . . 4 . . . . . . 6 . Electromagnetic 43 | . . . . . . . 12 . . 26 . . . . . . . . . . . . . . . . . . . 5 . Robot Hit Streak 21 | 6 13 7 20 2 . 5 10 20 4 14 . 11 . 6 . 17 20 13 16 . 13 18 11 10 . 10 19 20 . 21 20 Robot Miss Streak 11 | . 4 4 5 5 . 1 4 10 8 5 . 7 . 11 . 5 3 2 5 . 3 3 3 3 . 1 2 4 . 4 . Penetration Max 2 | . . . . . . . . . . . . . . . . . 1 . 1 . 1 1 1 1 . . 1 2 . 1 . Secondary Targets 24 | . 1 . . . . . 2 . 1 1 . . . . . . 3 3 2 . 4 4 . 2 . 1 . . . . . Max Gunslinging Chain 2 | . 1 . . . . . 1 . 1 1 . . . . . . 1 1 1 . 2 1 . 1 . 1 . . . . . Shots Hit Robots 1606 | 6 108 5 149 3 . 18 84 86 9 51 . 49 . 28 . 50 131 32 73 8 57 140 98 96 . 13 40 138 . 124 10 Core Hits 856 | 2 42 3 73 7 . 14 44 62 7 57 . 55 . 20 . 39 70 8 21 4 22 49 53 29 . 26 13 57 . 77 2 Critical Hits 97 | . 1 . 1 . . . 1 . . 1 . . . . . . 14 . 4 . 5 6 5 13 . 3 2 21 . 20 . Critical Kills 40 | . . . . . . . . . . . . . . . . . 9 . 2 . 3 2 2 3 . 1 . 10 . 8 . Critical Parts Destroyed 45 | . 1 . 1 . . . 1 . . . . . . . . . 5 . 2 . 2 4 2 7 . 2 . 7 . 11 . Melee Attacks 18 | . . . . . . . . . . 6 . . . . . 4 . . . 8 . . . . . . . . . . . Impact . | . . . . . . . . . . . . . . . . . . . . . . . . . . . . . . . . Slashing 6 | . . . . . . . . . . 6 . . . . . . . . . . . . . . . . . . . . . Piercing 12 | . . . . . . . . . . . . . . . . 4 . . . 8 . . . . . . . . . . . Sneak Attacks 1 | . . . . . . . . . . 1 . . . . . . . . . . . . . . . . . . . . . Combat Hostiles . | . . . . . . . . . . . . . . . . . . . . . . . . . . . . . . . . Follow-up Attacks . | . . . . . . . . . . . . . . . . . . . . . . . . . . . . . . . . Damage Inflicted 46516 | 57 1320 266 3191 368 . 448 1540 1320 90 1120 . 966 . 222 . 1638 4432 575 1516 783 1236 3845 4299 2584 . 1869 1103 4326 . 7079 323 Guns 29974 | 57 1048 35 2212 36 . 216 1303 1320 90 1000 . 966 . 222 . 698 3400 575 1516 . 1236 3556 1430 2584 . 431 905 2775 . 2204 159 Cannons 6435 | . 272 . 289 . . . . . . . . . . . . 155 372 . . . . 150 1769 . . 52 198 1153 . 1861 164 Explosions 8901 | . . 231 690 332 . 232 237 . . . . . . . . 489 660 . . . . 139 1099 . . 1380 . 398 . 3014 . Melee 1199 | . . . . . . . . . . 120 . . . . . 296 . . . 783 . . . . . . . . . . . Ramming 7 | . . . . . . . . . . . . . . . . . . . . . . . 1 . . 6 . . . . . Kinetic 27820 | 57 1048 35 2254 19 . 59 1064 1320 90 702 . 966 . 222 . 698 3353 266 1328 . 1158 3556 572 2584 . 431 905 2775 . 2199 159 Thermal 8311 | . 272 . 247 17 . 157 153 . . . . . . . . 155 419 309 188 . 78 150 2627 . . 52 198 1153 . 1972 164 Explosive 7158 | . . 231 690 332 . 232 185 . . . . . . . . 489 460 . . . . 139 1099 . . . . 398 . 2903 . Electromagnetic 2021 | . . . . . . . 138 . . 298 . . . . . . 200 . . . . . . . . 1380 . . . 5 . Impact . | . . . . . . . . . . . . . . . . . . . . . . . . . . . . . . . . Slashing 120 | . . . . . . . . . . 120 . . . . . . . . . . . . . . . . . . . . . Piercing 1079 | . . . . . . . . . . . . . . . . 296 . . . 783 . . . . . . . . . . . Highest Corruption 16 | . . . . . . . . 2 2 2 2 1 1 1 1 . . . . . . 16 16 4 3 14 . 2 2 7 . Average Corruption 4 | . . . . . . . . 1 2 2 2 1 1 1 1 . . . . . . 7 10 3 3 2 . 1 2 5 . Corruption Purged 22 | . . . . . . . . . . . . . . . . . . . . . . . 18 1 . 3 . . . . . Effects 247 | . . . . . . . . 9 2 7 2 2 3 2 1 . . . . . . 45 123 13 2 3 . 5 4 24 . Message Errors 57 | . . . . . . . . 4 1 3 1 2 2 2 1 . . . . . . 12 18 2 . . . . 1 8 . Matter Fused 32 | . . . . . . . . . . . . . . . . . . . . . . 4 20 2 . . . . . 6 . Heat Flow Errors 24 | . . . . . . . . 1 . . 1 . . . . . . . . . . 5 13 1 1 . . 1 . 1 . Energy Discharges 19 | . . . . . . . . 2 . . . . . . . . . . . . . 3 11 1 1 . . 1 . . . Data Loss (minor) 20 | . . . . . . . . . 1 3 . . . . . . . . . . . 2 9 . . 1 . . 2 2 . Data Loss (major) 6 | . . . . . . . . . . . . . . . . . . . . . . 1 4 . . . . . . 1 . Misfires 5 | . . . . . . . . . . . . . . . . . . . . . . . 5 . . . . . . . . Misdirections 13 | . . . . . . . . . . . . . . . . . . . . . . 1 11 . . 1 . . . . . Targeting Errors 63 | . . . . . . . . 2 . 1 . . 1 . . . . . . . . 14 29 6 . 1 . 3 . 6 . Weapon Failures 8 | . . . . . . . . . . . . . . . . . . . . . . 3 3 1 . . . . 1 . . Overload Shots 25 | . . . . . . . . . . . . . . . . . 11 6 5 . . 3 . . . . . . . . . Overflow Damage 815 | . . 43 24 . . . 34 . . . . . . . . 24 15 . . 131 . 24 55 . . 186 9 20 . 237 13 Projectiles 241 | . . . 24 . . . . . . . . . . . . . . . . . . 12 23 . . . 9 20 . 140 13 Explosions 425 | . . 43 . . . . 34 . . . . . . . . 6 15 . . . . 12 32 . . 186 . . . 97 . Melee 149 | . . . . . . . . . . . . . . . . 18 . . . 131 . . . . . . . . . . . Knockbacks 1 | . . . 1 . . . . . . . . . . . . . . . . . . . . . . . . . . . . Impact . | . . . . . . . . . . . . . . . . . . . . . . . . . . . . . . . . Kinetic 1 | . . . 1 . . . . . . . . . . . . . . . . . . . . . . . . . . . . Secondary . | . . . . . . . . . . . . . . . . . . . . . . . . . . . . . . . . Self-Inflicted Damage 609 | . . 47 . 39 . 38 84 . . . . . . . . 52 34 . . . . 74 100 . . 117 . 24 . . . Shots 14 | . . 2 . 2 . 1 2 . . . . . . . . 1 1 . . . . 1 1 . . 2 . 1 . . . Rammed 2 | . . . . . . . . . . . . . . . . . . . . . . . 1 . . 1 . . . . . Targets Rammed 2 | . . . . . . . . . . . . . . . . . . . . . . . 1 . . 1 . . . . . Kicked . | . . . . . . . . . . . . . . . . . . . . . . . . . . . . . . . . Crushed . | . . . . . . . . . . . . . . . . . . . . . . . . . . . . . . . . Highest Temperature 667 | . 159 . 298 83 . . 445 127 54 204 104 27 112 . . 146 90 32 98 . 106 288 667 72 88 114 144 290 348 356 42 Average Temperature 70 | . 41 . 73 38 . . 76 83 24 82 45 10 60 . . 65 27 10 42 . 38 98 122 11 57 35 46 71 107 69 33 Received Heat Transfer 2795 | . 282 . 399 . . 117 171 84 . 252 36 63 24 . . 135 138 27 265 . 18 210 160 86 . 99 31 106 . 92 . Effects 14 | . . . 3 . . . 5 . . . . . . . . . . . . . . . 6 . . . . . . . . Shutdowns 1 | . . . . . . . 1 . . . . . . . . . . . . . . . . . . . . . . . . Energy Bleed 4 | . . . 3 . . . . . . . . . . . . . . . . . . . 1 . . . . . . . . Interference 8 | . . . . . . . 3 . . . . . . . . . . . . . . . 5 . . . . . . . . Matter Decay 1 | . . . . . . . 1 . . . . . . . . . . . . . . . . . . . . . . . . Siege Activations . | . . . . . . . . . . . . . . . . . . . . . . . . . . . . . . . . Robots Corrupted 3 | . . . . . . . . . . 1 . . . . . . . . . . . . . . . 2 . . . . . Combat Hostiles 1 | . . . . . . . . . . 1 . . . . . . . . . . . . . . . . . . . . . Parts Fried 8 | . . . . . . . . . . 4 . . . . . . . . . . . . . . . 4 . . . . . Impact Corruptions . | . . . . . . . . . . . . . . . . . . . . . . . . . . . . . . . . Robots Melted . | . . . . . . . . . . . . . . . . . . . . . . . . . . . . . . . . Combat Hostiles . | . . . . . . . . . . . . . . . . . . . . . . . . . . . . . . . . Parts Melted 14 | . . . 1 . . . . . . . . . . . . . . 2 . . 1 . 3 . . . . 2 . 5 . Heat Transferred 9222 | . 555 . 555 37 . 333 222 . . . . . . . . 100 299 600 400 . 150 75 2330 . . 25 300 1574 . 1556 111 Parts Sabotaged . | . . . . . . . . . . . . . . . . . . . . . . . . . . . . . . . . Parts Stolen . | . . . . . . . . . . . . . . . . . . . . . . . . . . . . . . . . Parts Stripped . | . . . . . . . . . . . . . . . . . . . . . . . . . . . . . . . . Power Chain Reactions 2 | . . . . . . . 1 . . . . . . . . . . . . . . . . . . . . . . 1 . Missiles Intercepted . | . . . . . . . . . . . . . . . . . . . . . . . . . . . . . . . . Alert | -11 -10 -10 -9 -9 -9 -8 -8 -7 -7 -7 -6 -6 -6 -6 -6 -5 -5 -5 -5 -5 -4 -4 -4 -4 -4 -4 -3 -3 -3 -2 -1 ------- Run | Scr Mat Min Mat Min Exi Min Mat Fac Low Dat Pro Fac Low Low Zio Pro Fac Upp Upp Zhi Pro Fac Ext Cet Arc Hub Res Arm Lab Res Acc Peak Influence 1079 | 5 270 243 687 357 . 93 396 197 . . . 595 . . . . 677 . . . . 575 920 1078 607 1073 629 685 . 1079 457 Initial 544 | . 3 105 16 157 . . 35 6 . . . 9 . . . . 88 . . . . 78 266 440 431 205 544 165 . . 409 Average 305 | 1 172 176 392 274 . 57 222 65 . . . 173 . . . . 210 . . . . 253 661 884 491 210 494 314 . 297 420 Maximum Alert Level 3 | . 1 1 2 1 . . 1 . . . . 2 . . . . 2 . . . . 2 3 3 2 3 2 2 . 3 2 Low Security (%) 41 | 100 56 69 9 4 . 100 28 100 . . . 71 . . . . 51 . . . . 52 . . . 72 . 35 . 33 . Level 1 28 | . 43 30 45 95 . . 71 . . . . . . . . . 42 . . . . 12 15 . . 14 9 37 . 46 . Level 2 21 | . . . 44 . . . . . . . . 28 . . . . 6 . . . . 34 29 29 100 . 90 26 . 17 100 Level 3 8 | . . . . . . . . . . . . . . . . . . . . . . . 54 70 . 12 . . . 2 . Level 4 . | . . . . . . . . . . . . . . . . . . . . . . . . . . . . . . . . Level 5 . | . . . . . . . . . . . . . . . . . . . . . . . . . . . . . . . . High Security . | . . . . . . . . . . . . . . . . . . . . . . . . . . . . . . . . Max Security . | . . . . . . . . . . . . . . . . . . . . . . . . . . . . . . . . Squads Dispatched 57 | . 5 . 3 . . . 1 5 . . . 4 . . . . 8 . . . . 12 6 . . 2 6 2 . 3 . Investigation 8 | . 3 . 1 . . . . 1 . . . 1 . . . . . . . . . 1 . . . . 1 . . . . Extermination 11 | . . . . . . . . 1 . . . 1 . . . . 2 . . . . 4 . . . . . 1 . 2 . Reinforcement 26 | . 2 . 2 . . . 1 1 . . . . . . . . 6 . . . . 2 4 . . 1 5 1 . 1 . Assault 5 | . . . . . . . . . . . . . . . . . . . . . . 2 2 . . 1 . . . . . Garrison 7 | . . . . . . . . 2 . . . 2 . . . . . . . . . 3 . . . . . . . . . Intercept . | . . . . . . . . . . . . . . . . . . . . . . . . . . . . . . . . Construction Impeded 8 | . . . 1 . . . . . . . . . . . . . 3 . . . . 1 1 . . 1 . . . 1 . Haulers Reinforced 6 | . . . . . . . . 1 . . . . . . . . 2 . . . . 1 . . . . 2 . . . . Stealth | -11 -10 -10 -9 -9 -9 -8 -8 -7 -7 -7 -6 -6 -6 -6 -6 -5 -5 -5 -5 -5 -4 -4 -4 -4 -4 -4 -3 -3 -3 -2 -1 --------- Run | Scr Mat Min Mat Min Exi Min Mat Fac Low Dat Pro Fac Low Low Zio Pro Fac Upp Upp Zhi Pro Fac Ext Cet Arc Hub Res Arm Lab Res Acc Distress Signals 57 | . 1 . 3 . . . 3 . . . . 1 . . . 30 1 . . . . 2 2 2 1 . 7 2 . 2 . Communications Jammed . | . . . . . . . . . . . . . . . . . . . . . . . . . . . . . . . . Distress Signals . | . . . . . . . . . . . . . . . . . . . . . . . . . . . . . . . . Times Spotted 434 | . 25 4 40 7 . 3 27 21 4 4 5 9 1 6 . 10 41 8 10 . 16 41 42 14 1 25 9 22 . 39 . Peak Tracking Total 26 | . 4 3 5 4 . 3 6 5 4 4 4 2 1 4 . 5 4 6 4 . 5 10 7 5 6 26 3 6 . 8 . Tactical Retreats 30 | . 3 . 1 . . . 2 1 1 . 1 1 . 1 . 2 3 2 2 . 1 4 1 . . 1 . 1 . 2 . Traps | -11 -10 -10 -9 -9 -9 -8 -8 -7 -7 -7 -6 -6 -6 -6 -6 -5 -5 -5 -5 -5 -4 -4 -4 -4 -4 -4 -3 -3 -3 -2 -1 ------- Run | Scr Mat Min Mat Min Exi Min Mat Fac Low Dat Pro Fac Low Low Zio Pro Fac Upp Upp Zhi Pro Fac Ext Cet Arc Hub Res Arm Lab Res Acc Traps Triggered 18 | . 3 . 1 . . . . 1 . . . 2 . . . . . . . . . 1 7 . . 3 . . . . . Indirectly . | . . . . . . . . . . . . . . . . . . . . . . . . . . . . . . . . Trap Hack Attempts . | . . . . . . . . . . . . . . . . . . . . . . . . . . . . . . . . Triggered . | . . . . . . . . . . . . . . . . . . . . . . . . . . . . . . . . Disarmed . | . . . . . . . . . . . . . . . . . . . . . . . . . . . . . . . . Reprogrammed . | . . . . . . . . . . . . . . . . . . . . . . . . . . . . . . . . Reused . | . . . . . . . . . . . . . . . . . . . . . . . . . . . . . . . . Traps Extracted . | . . . . . . . . . . . . . . . . . . . . . . . . . . . . . . . . Installed . | . . . . . . . . . . . . . . . . . . . . . . . . . . . . . . . . Triggered 2 | . . . . . . . . . . . 1 . . . . . . . 1 . . . . . . . . . . . . Machines | -11 -10 -10 -9 -9 -9 -8 -8 -7 -7 -7 -6 -6 -6 -6 -6 -5 -5 -5 -5 -5 -4 -4 -4 -4 -4 -4 -3 -3 -3 -2 -1 ---------- Run | Scr Mat Min Mat Min Exi Min Mat Fac Low Dat Pro Fac Low Low Zio Pro Fac Upp Upp Zhi Pro Fac Ext Cet Arc Hub Res Arm Lab Res Acc Machines Disabled 58 | . . 1 4 2 . . 1 . . 1 . . . . . 1 12 . 1 . . 3 4 . 1 20 . 5 2 . . Max in Single Turn 14 | . . 1 1 1 . . 1 . . 1 . . . . . 1 2 . 1 . . 1 1 . . 14 . 2 1 . . Garrison Access 7 | . . . . . . . . 1 . . . 2 . . . . 2 . . . . . . . . 1 1 . . . . Network Hub 2 | . . . . . . . . . . . . . . . . . . . . . . . . . . 2 . . . . . Machines Sabotaged . | . . . . . . . . . . . . . . . . . . . . . . . . . . . . . . . . Garrisons Compromised . | . . . . . . . . . . . . . . . . . . . . . . . . . . . . . . . . Overloaded Fab Kills . | . . . . . . . . . . . . . . . . . . . . . . . . . . . . . . . . Fab Network Shutdowns 2 | . . . . . . . . . . . . 1 . . . . . . . . . . . . . . . . . 1 . Hacking | -11 -10 -10 -9 -9 -9 -8 -8 -7 -7 -7 -6 -6 -6 -6 -6 -5 -5 -5 -5 -5 -4 -4 -4 -4 -4 -4 -3 -3 -3 -2 -1 --------- Run | Scr Mat Min Mat Min Exi Min Mat Fac Low Dat Pro Fac Low Low Zio Pro Fac Upp Upp Zhi Pro Fac Ext Cet Arc Hub Res Arm Lab Res Acc Machines Accessed 147 | . 8 . 17 . 2 1 12 13 1 4 1 10 . 1 . . 24 1 . 4 . 8 9 1 1 5 8 6 . 7 3 Terminals 88 | . 6 . 11 . . 1 10 7 . . 1 4 . . . . 13 . . . . 5 9 1 . 5 3 4 . 5 3 Fabricators 8 | . . . . . . . . . . . . 1 . . . . 2 . . . . 1 . . . . 1 2 . 1 . Repair Stations 12 | . . . 2 . . . 1 1 . . . . . . . . 4 . . . . 2 . . . . 2 . . . . Recycling Units 9 | . 2 . 2 . . . . 3 . . . 1 . . . . 1 . . . . . . . . . . . . . . Scanalyzers 10 | . . . 2 . . . 1 1 . . . 2 . . . . 2 . . . . . . . . . 1 . . 1 . Garrison Access 6 | . . . . . . . . 1 . . . 2 . . . . 2 . . . . . . . . . 1 . . . . Total Hacks 566 | . 20 . 68 . 2 2 31 43 1 23 1 26 . 1 . . 81 1 . 17 . 49 15 1 25 25 33 43 . 45 13 Successful 389 | . 14 . 47 . 2 . 19 27 1 23 1 15 . 1 . . 64 1 . 17 . 23 9 1 25 15 20 29 . 28 7 Failed 173 | . 6 . 20 . . 2 12 15 . . . 11 . . . . 16 . . . . 26 6 . . 9 13 14 . 17 6 Catastrophic 12 | . . . 1 . . . 1 . . . . . . . . . . . . . . 4 . . . 1 1 2 . 1 1 Database Lockouts 4 | . . . 1 . . . . 1 . . . . . . . . 1 . . . . . . . . 1 . . . . . Manual 276 | . 17 . 42 . 1 2 22 25 . . . 13 . . . . 33 . 1 . . 26 . 1 . 20 11 29 . 24 9 Terminals 349 | . 16 . 47 . . 2 27 30 . . 1 12 . . . . 47 . . . . 28 15 1 . 25 15 35 . 35 13 Fabricators 40 | . . . . . . . . . . . . 3 . . . . 7 . . . . 11 . . . . 4 8 . 7 . Repair Stations 42 | . . . 6 . . . 2 2 . . . . . . . . 13 . . . . 10 . . . . 9 . . . . Recycling Units 21 | . 4 . 6 . . . . 6 . . . 2 . . . . 3 . . . . . . . . . . . . . . Scanalyzers 36 | . . . 9 . . . 2 4 . . . 6 . . . . 9 . . . . . . . . . 3 . . 3 . Garrison Access 8 | . . . . . . . . 1 . . . 3 . . . . 2 . . . . . . . . . 2 . . . . Terminal Hacks 208 | . 4 . 14 . 2 . 9 12 1 23 1 6 . 1 . . 22 1 . 17 . 10 9 1 25 9 4 17 . 17 3 Record 43 | . . . . . 1 . . . . 11 1 . . . . . . . . 5 . . . . 25 . . . . . . Part Schematic 21 | . . . . . . . . . . 5 . 2 . . . . 4 . . 4 . . . . . 2 . 3 . 1 . Robot Schematic 4 | . . . . . . . . . . 4 . . . . . . . . . . . . . . . . . . . . . Robot Analysis 21 | . 3 . 1 . . . . 4 . . . . . . . . . . . 4 . 1 . . . . 1 6 . 1 . Prototype ID Bank 23 | . 1 . 5 . . . 4 1 . 3 . . . . . . 4 . . 4 . . . . . 1 . . . . . Open Door 14 | . . . . . . . . . 1 . . . . 1 . . . 1 . . . . 9 1 . . . . . . 1 Level Access Points 2 | . . . . . . . . 1 . . . . . . . . . . . . . . . . . . . . . 1 . Branch Access Points 6 | . . . 1 . . . 1 1 . . . . . . . . 1 . . . . 1 . . . . 1 . . . . Emergency Access Points 3 | . . . 1 . . . . . . . . . . . . . . . . . . . . . . . . 1 . 1 . Terminal Index 6 | . . . . . . . . 1 . . . . . . . . 1 . . . . 1 . . . 1 . 1 . 1 . Fabricator Index 3 | . . . . . . . . . . . . . . . . . 1 . . . . . . . . . . . . 1 1 Repair Station Index 3 | . . . . . . . . 1 . . . . . . . . . . . . . . . . . 1 . . . 1 . Garrison Index 1 | . . . . . . . . . . . . . . . . . . . . . . . . . . . . . . 1 . Alert Level 14 | . . . 2 . . . 1 1 . . . 1 . . . . 1 . . . . 1 . . . 2 1 1 . 2 1 Unreport Threat 19 | . . . 2 . . . 2 . . . . 3 . . . . 5 . . . . . . . . 1 . 3 . 3 . Locate Traps 10 | . . . 2 . . . 1 1 . . . . . . . . 1 . . . . 2 . . . . . 1 . 2 . Investigation Status 1 | . . . . . . . . . . . . . . . . . . . . . . 1 . . . . . . . . . Extermination Status 1 | . . . . . . . . . . . . . . . . . . . . . . 1 . . . . . . . . . Recall Investigation 1 | . . . . . . . . . . . . . . . . . . . . . . . . . . . . 1 . . . Recall Extermination 1 | . . . . . . . . . . . . . . . . . . . . . . 1 . . . . . . . . . Recall Reinforcements 2 | . . . . . . . . . . . . . . . . . 1 . . . . 1 . . . . . . . . . Hauler Manifests 3 | . . . . . . . . . . . . . . . . . . . . . . . . . . 1 1 . . 1 . Registered Components 1 | . . . . . . . . . . . . . . . . . 1 . . . . . . . . . . . . . . Registered Prototypes 2 | . . . . . . . . . . . . . . . . . 1 . . . . . . . . . . . . 1 . Zone Layout 2 | . . . . . . . . 1 . . . . . . . . 1 . . . . . . . . . . . . . . EX-Prototype ID Bank 1 | . . . . . 1 . . . . . . . . . . . . . . . . . . . . . . . . . . Fabricator Hacks 18 | . . . . . . . . . . . . 3 . . . . 5 . . . . 2 . . . . 2 4 . 2 . Network Status 2 | . . . . . . . . . . . . 1 . . . . 1 . . . . . . . . . . . . . . Load Schematic 8 | . . . . . . . . . . . . 1 . . . . 2 . . . . 1 . . . . 1 2 . 1 . Build 8 | . . . . . . . . . . . . 1 . . . . 2 . . . . 1 . . . . 1 2 . 1 . Repair Station Hacks 28 | . . . 6 . . . 2 2 . . . . . . . . 9 . . . . 5 . . . . 4 . . . . Scan Component 15 | . . . 3 . . . 1 1 . . . . . . . . 5 . . . . 3 . . . . 2 . . . . Repair 13 | . . . 3 . . . 1 1 . . . . . . . . 4 . . . . 2 . . . . 2 . . . . Recycling Unit Hacks 6 | . 1 . 2 . . . . 1 . . . 1 . . . . 1 . . . . . . . . . . . . . . Report Inventory 5 | . . . 2 . . . . 1 . . . 1 . . . . 1 . . . . . . . . . . . . . . Retrieve Components 1 | . 1 . . . . . . . . . . . . . . . . . . . . . . . . . . . . . . Scanalyzer 27 | . . . 9 . . . 1 2 . . . 1 . . . . 8 . . . . . . . . . 3 . . 3 . Insert Component 18 | . . . 5 . . . 1 1 . . . 1 . . . . 5 . . . . . . . . . 2 . . 3 . Analyze 9 | . . . 4 . . . . 1 . . . . . . . . 3 . . . . . . . . . 1 . . . . Garrison Access Hacks 6 | . . . . . . . . 1 . . . 2 . . . . 2 . . . . . . . . . 1 . . . . Seal Access 6 | . . . . . . . . 1 . . . 2 . . . . 2 . . . . . . . . . 1 . . . . Unauthorized Hacks 96 | . 9 . 16 . . . 7 9 . . . 2 . . . . 17 . . . . 6 . . . 6 6 8 . 6 4 Terminals 75 | . 7 . 12 . . . 7 5 . . . 1 . . . . 13 . . . . 4 . . . 6 5 6 . 5 4 Track 3 | . . . . . . . . . . . . . . . . . . . . . . . . . . . 1 1 . . 1 Assimilate 11 | . . . . . . . 2 1 . . . . . . . . 5 . . . . 1 . . . . 1 . . 1 . Botnet 54 | . 6 . 11 . . . 5 4 . . . 1 . . . . 8 . . . . 3 . . . 5 2 4 . 3 2 Operators 7 | . 1 . 1 . . . . . . . . . . . . . . . . . . . . . . 1 1 1 . 1 1 Fabricators 8 | . . . . . . . . . . . . . . . . . 2 . . . . 2 . . . . 1 2 . 1 . Prioritize 4 | . . . . . . . . . . . . . . . . . 1 . . . . 1 . . . . . 1 . 1 . Siphon 4 | . . . . . . . . . . . . . . . . . 1 . . . . 1 . . . . 1 1 . . . Repair Stations . | . . . . . . . . . . . . . . . . . . . . . . . . . . . . . . . . Recycling Units 13 | . 2 . 4 . . . . 4 . . . 1 . . . . 2 . . . . . . . . . . . . . . Reject 1 | . . . . . . . . . . . . 1 . . . . . . . . . . . . . . . . . . . Recyclers 4 | . . . 2 . . . . 1 . . . . . . . . 1 . . . . . . . . . . . . . . Mask 7 | . 1 . 2 . . . . 3 . . . . . . . . 1 . . . . . . . . . . . . . . Tunnel 1 | . 1 . . . . . . . . . . . . . . . . . . . . . . . . . . . . . . Scanalyzers . | . . . . . . . . . . . . . . . . . . . . . . . . . . . . . . . . Garrison Access . | . . . . . . . . . . . . . . . . . . . . . . . . . . . . . . . . Data Cores Recovered . | . . . . . . . . . . . . . . . . . . . . . . . . . . . . . . . . Used . | . . . . . . . . . . . . . . . . . . . . . . . . . . . . . . . . Hacking Detections 105 | . 7 . 15 . . 1 11 10 . . 1 9 . . . . 21 . . . . 6 2 . . 4 5 5 . 6 2 Full Trace Events 4 | . 1 . 1 . . . . 1 . . . . . . . . . . . . . 1 . . . . . . . . . Feedback Events 1 | . . . . . . . . 1 . . . . . . . . . . . . . . . . . . . . . . . Corruption 1 | . . . . . . . . 1 . . . . . . . . . . . . . . . . . . . . . . . Feedback Blocked . | . . . . . . . . . . . . . . . . . . . . . . . . . . . . . . . . Robot Schematics Acquired 4 | . . . . . . . . . . 4 . . . . . . . . . . . . . . . . . . . . . Robots Built . | . . . . . . . . . . . . . . . . . . . . . . . . . . . . . . . . Matter . | . . . . . . . . . . . . . . . . . . . . . . . . . . . . . . . . Time . | . . . . . . . . . . . . . . . . . . . . . . . . . . . . . . . . Total Robot Build Rating . | . . . . . . . . . . . . . . . . . . . . . . . . . . . . . . . . Part Schematics Acquired 29 | . . . 4 . . . . 1 . 5 . 2 . . . . 6 . . 4 . . . . . 2 1 3 . 1 . Parts Built 10 | . . . . . . . . . . . . 2 . . . . 1 . . . . 1 . . . . 2 3 . 1 . Matter 1787 | . . . . . . . . . . . . 168 . . . . 498 . . . . 285 . . . . 175 277 . 384 . Time 513 | . . . . . . . . . . . . 84 . . . . 152 . . . . 76 . . . . 58 75 . 68 . Total Part Build Rating 55 | . . . . . . . . . . . . 8 . . . . 5 . . . . 5 . . . . 14 15 . 8 . Parts Repaired 13 | . . . 3 . . . 1 1 . . . . . . . . 4 . . . . 2 . . . . 2 . . . . Time 477 | . . . 128 . . . 51 13 . . . . . . . . 126 . . . . 82 . . . . 77 . . . . Parts Recycled . | . . . . . . . . . . . . . . . . . . . . . . . . . . . . . . . . Recycled Matter . | . . . . . . . . . . . . . . . . . . . . . . . . . . . . . . . . Retrieved Matter . | . . . . . . . . . . . . . . . . . . . . . . . . . . . . . . . . Retrieved Components 9 | . 9 . . . . . . . . . . . . . . . . . . . . . . . . . . . . . . Parts Scanalyzed 9 | . . . 4 . . . 1 1 . . . . . . . . 2 . . . . . . . . . 1 . . . . Part Schematics Acquired 8 | . . . 4 . . . . 1 . . . . . . . . 2 . . . . . . . . . 1 . . . . Parts Damaged . | . . . . . . . . . . . . . . . . . . . . . . . . . . . . . . . . Bothacking | -11 -10 -10 -9 -9 -9 -8 -8 -7 -7 -7 -6 -6 -6 -6 -6 -5 -5 -5 -5 -5 -4 -4 -4 -4 -4 -4 -3 -3 -3 -2 -1 ------------ Run | Scr Mat Min Mat Min Exi Min Mat Fac Low Dat Pro Fac Low Low Zio Pro Fac Upp Upp Zhi Pro Fac Ext Cet Arc Hub Res Arm Lab Res Acc Used RIF Installer . | . . . . . . . . . . . . . . . . . . . . . . . . . . . . . . . . Robots Hacked . | . . . . . . . . . . . . . . . . . . . . . . . . . . . . . . . . Non-combat . | . . . . . . . . . . . . . . . . . . . . . . . . . . . . . . . . Combat . | . . . . . . . . . . . . . . . . . . . . . . . . . . . . . . . . Robot Hacks Applied . | . . . . . . . . . . . . . . . . . . . . . . . . . . . . . . . . Relay Couplers Released 13 | . . . . . . . . . . . . . . . . . 3 . . . . . . . . 2 8 . . . . Machine Destruction 2 | . . . . . . . . . . . . . . . . . . . . . . . . . . 2 . . . . . Programmers 11 | . . . . . . . . . . . . . . . . . 3 . . . . . . . . . 8 . . . . Robots Rewired 15 | . . . . . . . . . . . 1 . . . . . 1 . . . . . 13 . . . . . . . . Allies Hacked . | . . . . . . . . . . . . . . . . . . . . . . . . . . . . . . . . Hacks Repelled . | . . . . . . . . . . . . . . . . . . . . . . . . . . . . . . . . Allies | -11 -10 -10 -9 -9 -9 -8 -8 -7 -7 -7 -6 -6 -6 -6 -6 -5 -5 -5 -5 -5 -4 -4 -4 -4 -4 -4 -3 -3 -3 -2 -1 -------- Run | Scr Mat Min Mat Min Exi Min Mat Fac Low Dat Pro Fac Low Low Zio Pro Fac Upp Upp Zhi Pro Fac Ext Cet Arc Hub Res Arm Lab Res Acc Total Allies 45 | . . 1 . 2 . . 1 1 . . 1 . . . . . 3 . . . . 1 28 5 . . 1 . . 1 . Largest Group 12 | . . 1 . 2 2 . 1 2 . . 1 . . . . . 2 1 . . . 1 12 11 9 1 1 1 . 1 . Highest-Rated Group 851 | . . 31 . 45 45 . 10 20 . . 29 . . . . . 51 24 . . . 44 506 851 639 94 21 21 . 10 . Highest-Rated Ally 156 | . . 31 . 31 31 . 10 10 . . 29 . . . . . 41 24 . . . 44 156 156 94 94 21 21 . 10 . Total Orders 17 | . . . . . 2 . . 8 . . . . . . . . 5 . . . . . . . . 1 . . . . 1 STAY 7 | . . . . . . . . 4 . . . . . . . . 2 . . . . . . . . 1 . . . . . ROAM 2 | . . . . . . . . 1 . . . . . . . . 1 . . . . . . . . . . . . . . FOLLOW 5 | . . . . . . . . 3 . . . . . . . . 2 . . . . . . . . . . . . . . EXPLORE 2 | . . . . . 1 . . . . . . . . . . . . . . . . . . . . . . . . . 1 RETURN 1 | . . . . . 1 . . . . . . . . . . . . . . . . . . . . . . . . . . Ally Attacks 248 | . . 7 . . . . . . . . 1 . . . . . 15 . . . . . 119 80 26 . . . . . . Total Damage 7359 | . . 130 . . . . . . . . 20 . . . . . 520 . . . . . 3609 2252 828 . . . . . . Kills 43 | . . 2 . . . . . . . . . . . . . . 7 . . . . . 18 11 5 . . . . . . Allies Corrupted . | . . . . . . . . . . . . . . . . . . . . . . . . . . . . . . . . Allies Melted . | . . . . . . . . . . . . . . . . . . . . . . . . . . . . . . . . Intel | -11 -10 -10 -9 -9 -9 -8 -8 -7 -7 -7 -6 -6 -6 -6 -6 -5 -5 -5 -5 -5 -4 -4 -4 -4 -4 -4 -3 -3 -3 -2 -1 ------- Run | Scr Mat Min Mat Min Exi Min Mat Fac Low Dat Pro Fac Low Low Zio Pro Fac Upp Upp Zhi Pro Fac Ext Cet Arc Hub Res Arm Lab Res Acc Robot Analysis Total 21 | . 3 . 1 . . . . 4 . . . . . . . . . . . 4 . 1 . . . . 1 6 . 1 . Derelict Logs Recovered 13 | . . 1 . 2 . . . . . . 2 . 2 1 . 2 . 1 1 . 1 . . . . . . . . . . Drone Launches 2 | . . . . . 1 . . . . . . . . . . . . . . . . . . . . . . . . . 1 Drone Recoveries 1 | . . . . . 1 . . . . . . . . . . . . . . . . . . . . . . . . . . Exploration | -11 -10 -10 -9 -9 -9 -8 -8 -7 -7 -7 -6 -6 -6 -6 -6 -5 -5 -5 -5 -5 -4 -4 -4 -4 -4 -4 -3 -3 -3 -2 -1 ------------- Run | Scr Mat Min Mat Min Exi Min Mat Fac Low Dat Pro Fac Low Low Zio Pro Fac Upp Upp Zhi Pro Fac Ext Cet Arc Hub Res Arm Lab Res Acc Turns Passed 25654 | 68 1109 495 1509 239 439 146 1381 2070 177 429 726 1064 831 750 937 1113 2590 498 661 253 480 1128 2314 345 74 286 888 1109 366 996 183 Spaces Moved 16750 | 53 686 429 825 183 343 68 984 1629 134 255 539 714 651 421 842 620 1687 373 456 189 329 671 921 186 52 210 679 624 236 616 145 Core 9 | 9 . . . . . . . . . . . . . . . . . . . . . . . . . . . . . . . Treads . | . . . . . . . . . . . . . . . . . . . . . . . . . . . . . . . . Legs . | . . . . . . . . . . . . . . . . . . . . . . . . . . . . . . . . Wheels 16741 | 44 686 429 825 183 343 68 984 1629 134 255 539 714 651 421 842 620 1687 373 456 189 329 671 921 186 52 210 679 624 236 616 145 Hover . | . . . . . . . . . . . . . . . . . . . . . . . . . . . . . . . . Flight . | . . . . . . . . . . . . . . . . . . . . . . . . . . . . . . . . Fastest Speed 50 | 50 90 110 120 120 100 120 100 110 110 100 110 110 110 110 110 110 103 103 103 110 103 100 100 103 110 102 100 100 100 110 110 Average Speed 110 | 86 112 110 120 120 119 123 107 110 110 109 110 110 110 110 110 110 113 113 111 110 109 107 109 106 110 109 108 108 102 110 110 Slowest Speed 140 | 100 120 110 120 120 120 140 120 120 110 120 110 110 110 110 110 110 120 115 113 110 110 115 115 110 110 115 113 110 110 110 110 Overloaded Moves . | . . . . . . . . . . . . . . . . . . . . . . . . . . . . . . . . Propulsion Burnouts . | . . . . . . . . . . . . . . . . . . . . . . . . . . . . . . . . Robots Hopped . | . . . . . . . . . . . . . . . . . . . . . . . . . . . . . . . . Cave-ins Triggered 1 | . . . . . . . . . . . . . . . . . . . . . . . 1 . . . . . . . . Exploration Rate (%) 56 | 4 97 96 88 39 90 20 89 47 14 77 87 19 87 59 83 73 46 60 63 61 57 23 70 66 65 24 24 41 92 21 10 Regions Visited 31 Branch Regions 21 Pre-discovered Areas 11 | . 1 1 . 1 1 . . . . 1 . . . . 2 1 . . . 3 . . . . . . . . . . . Known Exits Taken 9 | . . . 1 . . . . 1 . . 1 1 . . . . 1 . . . 1 1 . . . . 1 . . 1 . Unknown Exits Taken 22 | 1 1 1 . 1 1 1 1 . 1 1 . . 1 1 1 1 . 1 1 1 . . 1 1 1 1 . 1 1 . . Scrap Searched 23 | . . 2 . 1 . . . . . . 2 . 6 2 . 1 . 3 4 . 2 . . . . . . . . . . Spaces Dug 289 | . . . . . . . 11 . . 2 4 4 25 2 . 64 43 6 5 . . 16 57 . . 1 6 11 10 16 6 Terrain Destroyed 1269 | . . 20 25 34 . 29 17 . . 2 4 4 25 2 . 106 96 8 9 . 8 71 254 44 . 299 7 65 10 124 6 Melee 2 | . . . . . . . . . . 2 . . . . . . . . . . . . . . . . . . . . . Projectile 337 | . . . 5 . . . 1 . . . 4 4 25 2 . 7 49 8 9 . 8 35 40 44 . 7 7 37 10 29 6 AOE 930 | . . 20 20 34 . 29 16 . . . . . . . . 99 47 . . . . 36 214 . . 292 . 28 . 95 . Terrain Rammed . | . . . . . . . . . . . . . . . . . . . . . . . . . . . . . . . . Walls Destroyed . | . . . . . . . . . . . . . . . . . . . . . . . . . . . . . . . . Machines Disabled . | . . . . . . . . . . . . . . . . . . . . . . . . . . . . . . . . Actions | -11 -10 -10 -9 -9 -9 -8 -8 -7 -7 -7 -6 -6 -6 -6 -6 -5 -5 -5 -5 -5 -4 -4 -4 -4 -4 -4 -3 -3 -3 -2 -1 --------- Run | Scr Mat Min Mat Min Exi Min Mat Fac Low Dat Pro Fac Low Low Zio Pro Fac Upp Upp Zhi Pro Fac Ext Cet Arc Hub Res Arm Lab Res Acc Total 22001 | 66 865 439 1180 193 371 97 1196 1832 155 351 666 945 734 684 852 978 2152 409 526 218 384 922 2106 264 68 249 803 958 354 825 159 Wait 3164 | 2 48 3 184 4 10 10 97 65 15 1 108 172 53 249 . 297 284 1 10 1 16 125 946 18 14 6 69 216 52 86 2 Move 16717 | 52 685 428 824 182 342 67 983 1628 133 254 538 713 650 420 841 619 1686 372 455 188 328 670 919 185 51 209 678 623 235 615 144 Hop . | . . . . . . . . . . . . . . . . . . . . . . . . . . . . . . . . Pick Up 207 | 2 22 . 20 . 9 . 17 17 2 18 1 4 . 1 2 6 9 1 5 2 4 9 11 3 . 1 4 9 18 10 . Fast Attach 148 | 7 4 . 8 . 4 1 9 18 . 6 1 9 2 . 3 2 14 2 2 7 1 6 5 4 . 9 10 8 4 2 . Attach 105 | . 2 . 5 . 1 . 4 6 . 12 . 3 . . 1 7 5 3 5 1 5 9 10 2 . 3 7 1 2 9 2 Detach 31 | . . . 2 . . . . 3 . 5 . . . . . . 3 1 1 2 . 3 3 . . 1 3 . 4 . . Swap 188 | . 9 2 18 4 . 2 11 11 . 11 3 5 1 1 1 6 12 5 5 2 1 18 16 7 . 4 6 8 3 15 1 Drop 265 | . 11 . 36 . 5 . 23 40 1 16 2 15 2 1 4 2 16 3 3 7 1 7 4 8 . 6 6 21 16 8 1 Fire 999 | 3 84 6 83 3 . 17 52 36 4 22 4 24 26 12 . 34 121 21 40 . 28 75 58 37 . 8 20 72 20 80 9 Melee 18 | . . . . . . . . . . 6 . . . . . 4 . . . 8 . . . . . . . . . . . Ram 3 | . . . . . . . . . . . . . . . . . . . . . . . 1 . . 2 . . . . . Kick . | . . . . . . . . . . . . . . . . . . . . . . . . . . . . . . . . Crush . | . . . . . . . . . . . . . . . . . . . . . . . . . . . . . . . . Escape Stasis 64 | . . . . . . . . 8 . . . . . . . . . . . . . . 56 . . . . . . . . Rewire 92 | . . . . . . . . . . . 9 . . . . 1 2 . . . . . 77 . 3 . . . . . . Trap . | . . . . . . . . . . . . . . . . . . . . . . . . . . . . . . . . Miscellaneous . | . . . . . . . . . . . . . . . . . . . . . . . . . . . . . . . . Route ------- -11/Scrapyard -10/Materials (discovered 4 exits: *Mat x3 / [*Min]) -10/Mines (discovered 2 exits: *Mat x2) -9/Materials (discovered 6 exits: *Mat x3 / *Min x2 / *Sto) -9/Mines (discovered 2 exits: *Mat / *Exi) -9/Exiles (discovered 2 exits: *Min x2) -8/Mines -8/Materials (discovered 3 exits: *Fac x3) -7/Factory (discovered 6 exits: *Fac x4 / *Low x2) -7/Lower Caves -7/Data Miner -6/Proximity Caves -6/Factory (discovered 2 exits: *Fac / *Low) -6/Lower Caves -6/Lower Caves (discovered 2 exits: Fac / [*Zio]) -6/Zion -5/Proximity Caves -5/Factory (discovered 4 exits: *Fac x2 / *Upp x2) -5/Upper Caves -5/Upper Caves (discovered 2 exits: *Fac / *Zhi) -5/Zhirov -4/Proximity Caves -4/Factory (discovered 5 exits: *Res / Upp x2 / *Ext x2) -4/Extension (discovered 2 exits: *Res / *Cet) -4/Cetus (discovered 2 exits: *Res / *Arc) -4/Archives -4/Hub_04(d) (discovered 2 exits: *Res x2) -3/Research (discovered 3 exits: *Arm / Tes x2) -3/Armory (discovered 3 exits: Res x2 / [*Lab]) -3/Lab -2/Research (discovered 4 exits: *Acc x3 / [Qua]) -1/Access To Epsilon Eridani History --------- Turn | Location | Event 2 | -11/Scrapyard | Met Revision 17 28 | -11/Scrapyard | Discovered new exit (range 15) 69 | -11/Scrapyard | Entered Materials 305 | -10/Materials | Build established: Mutant 392 | -10/Materials | Discovered new exit (range 13) 418 | -10/Materials | Discovered new exit (range 12) 621 | -10/Materials | Build established: Hauler-Mutant 737 | -10/Materials | Discovered new exit (range 15) 832 | -10/Materials | Discovered new exit (range 5) 1178 | -10/Materials | Entered Mines 1228 | -10/Mines | Discovered new exit (range 10) 1319 | -10/Mines | Discovered new exit (range 7) 1322 | -10/Mines | Received a Mining Laser from a helpful Derelict 1673 | -10/Mines | Entered Materials 1673 | -9/Materials | Evolved 2 slots: Utility x1, Weapon x1 1784 | -9/Materials | Discovered new exit (range 7) 1849 | -9/Materials | Destroyed 7 combat bots 2065 | -9/Materials | Discovered new exit (range 14) 2126 | -9/Materials | Discovered new exit (range 16) 2221 | -9/Materials | Build established: Hauler-Tank 2366 | -9/Materials | Discovered new exit (range 5) 2434 | -9/Materials | Repaired Lgt. Armor Plating 2486 | -9/Materials | Repaired Hvy. Ion Engine 2540 | -9/Materials | Identified exit to Mines 2540 | -9/Materials | Identified exit to Storage 2643 | -9/Materials | Central database locked down 2880 | -9/Materials | Discovered new exit (range 16) 3144 | -9/Materials | Repaired Imp. Assault Rifle 3182 | -9/Materials | Entered Mines 3222 | -9/Mines | Learned Materials emergency access door positions 3314 | -9/Mines | Deemed a non-threat by the Exiles lab entrance 3314 | -9/Mines | Discovered new exit (range 5) 3342 | -9/Mines | Learned location of Zion (-6) 3370 | -9/Mines | Discovered new exit (range 15) 3374 | -9/Mines | Assembled infested the area 3421 | -9/Mines | Entered Exiles 3421 | -9/Exiles | Accompanied by 2 allies 3437 | -9/Exiles | Discovered new exit (range 15) 3450 | -9/Exiles | Met 8R-AWN 3451 | -9/Exiles | Led the pair of lost Derelicts to a safe place 3471 | -9/Exiles | Met EX-HEX 3525 | -9/Exiles | Met EX-DEC 3639 | -9/Exiles | Met EX-BIN 3655 | -9/Exiles | Aligned with FarCom system 3657 | -9/Exiles | Given EX-Vault access code 3684 | -9/Exiles | Opened EX-Vault 3698 | -9/Exiles | Found PSU Rigger 3704 | -9/Exiles | Found Supersonic Drone Bay 3721 | -9/Exiles | Found Lightpack 2.0 3774 | -9/Exiles | Warned to stay clear of 0b10 Research branches 3846 | -9/Exiles | Discovered new exit (range 14) 3860 | -9/Exiles | Left Exiles lab with Supersonic Drone Bay 3860 | -9/Exiles | Entered Mines 3992 | -8/Mines | Discovered new exit (range 8) 4006 | -8/Mines | Entered Materials 4006 | -8/Materials | Evolved 2 slots: Propulsion x1, Utility x1 4332 | -8/Materials | Repaired Imp. Assault Rifle 4403 | -8/Materials | Discovered new exit (range 9) 4723 | -8/Materials | Discovered new exit (range 15) 5148 | -8/Materials | Discovered new exit (range 10) 5177 | -8/Materials | Build established: Scavenger-Skirmisher 5387 | -8/Materials | Entered Factory 5387 | -7/Factory | Accompanied by 1 ally 5387 | -7/Factory | Evolved 2 slots: Utility x2 5763 | -7/Factory | Build established: Hauler-Skirmisher 5768 | -7/Factory | Discovered new exit (range 9) 5815 | -7/Factory | Garrison activated, responded to threat 6135 | -7/Factory | Discovered new exit (range 3) 6185 | -7/Factory | Identified exit to Factory 6271 | -7/Factory | Identified exit to Lower Caves 6857 | -7/Factory | Garrison activated, responded to threat 7209 | -7/Factory | Central database locked down 7362 | -7/Factory | Repaired Hcp. Storage Unit 7457 | -7/Factory | Entered Lower Caves 7508 | -7/Lower Caves | A Derelict revealed a hidden shortcut to meet someone special 7634 | -7/Lower Caves | Entered Data Miner 7634 | -7/Data Miner | Discovered new exit (range 6) 7658 | -7/Data Miner | Met Data Miner 7676 | -7/Data Miner | Acquired the access code to Warlord's prototype stash 7676 | -7/Data Miner | Learned location of Section 7 (-2) 7694 | -7/Data Miner | Received God Mode back door access code from Data Miner 7783 | -7/Data Miner | Destroyed Data Miner 7786 | -7/Data Miner | Found Prototype Hackware 7793 | -7/Data Miner | Data Conduit disabled 7876 | -7/Data Miner | Core integrity fell below 50% 7910 | -7/Data Miner | Lost 9 parts (1p1n5u2w) 7966 | -7/Data Miner | Found Prototype Device 7966 | -7/Data Miner | Identified Exp. Thermal Shield 7988 | -7/Data Miner | Found Exp. Thermal Shield 8000 | -7/Data Miner | Found Prototype Hackware 8004 | -7/Data Miner | Found Prototype Hackware 8063 | -7/Data Miner | Entered Proximity Caves 8082 | -6/Proximity Caves | Learned Factory interactive machine intel 8381 | -6/Proximity Caves | Spotted B-75 Beast 8711 | -6/Proximity Caves | Discovered exit to Factory (range 15) 8789 | -6/Proximity Caves | Entered Factory 8789 | -6/Factory | Evolved 2 slots: Propulsion x1, Utility x1 8790 | -6/Factory | Identified exit to Lower Caves 8791 | -6/Factory | Loaded intel: 46 interactive machine locations 8859 | -6/Factory | Identified System Mapper 9071 | -6/Factory | Fabricated Arm. Huge Wheel (x2) 9097 | -6/Factory | Build established: Scavenger-Mutant 9196 | -6/Factory | Discovered new exit (range 22) 9291 | -6/Factory | Local fabrication network quarantined 9302 | -6/Factory | Garrison activated, responded to threat 9655 | -6/Factory | Garrison activated, responded to threat 9806 | -6/Factory | Build established: Scavenger-Skirmisher 9853 | -6/Factory | Entered Lower Caves 10180 | -6/Lower Caves | Spotted B-75 Beast 10248 | -6/Lower Caves | Build established: Scavenger-Mutant 10326 | -6/Lower Caves | Learned Factory trap positions 10354 | -6/Lower Caves | Learned 4 Factory zone layouts 10670 | -6/Lower Caves | Discovered new exit (range 14) 10684 | -6/Lower Caves | Entered another Lower Caves area 10701 | -6/Lower Caves | Discovered new exit (range 13) 11145 | -6/Lower Caves | Discovered new exit (range 15) 11173 | -6/Lower Caves | Learned Factory emergency access door positions 11210 | -6/Lower Caves | Build established: Scavenger-Skirmisher 11434 | -6/Lower Caves | Entered Zion 11481 | -6/Zion | Discovered new exit (range 23) 11544 | -6/Zion | System corruption cleaned by Quarantine Array 11592 | -6/Zion | Found Prototype Device 11857 | -6/Zion | Found Prototype Device 11857 | -6/Zion | Identified Bomb Factory No. 2 12122 | -6/Zion | Given A8's code to call for help 12171 | -6/Zion | Acquired unknown access codes intercepted by a Zionite 12284 | -6/Zion | Found CR-A16's Pointy Stick 12371 | -6/Zion | Entered Proximity Caves 12992 | -5/Proximity Caves | Learned location of 1 exit from Factory 13104 | -5/Proximity Caves | Learned location of Armory (-3) 13243 | -5/Proximity Caves | Attracted the attention of an 0b10 checkpoint 13321 | -5/Proximity Caves | Discovered new exit (range 24) 13326 | -5/Proximity Caves | Lost 3 parts (1p2w) 13484 | -5/Proximity Caves | Entered Factory 13484 | -5/Factory | Evolved 2 slots: Utility x2 13485 | -5/Factory | Identified exit to Upper Caves 13487 | -5/Factory | Loaded intel: 98 trap records 13570 | -5/Factory | Found Unknown Protection 13570 | -5/Factory | Identified Powered Armor 13572 | -5/Factory | Found Powered Armor 13813 | -5/Factory | Repaired Arm. Huge Wheel 14075 | -5/Factory | Repaired Lrn. Terrain Scanner? 14081 | -5/Factory | Build established: Scavenger-Mutant 14273 | -5/Factory | Fabricated Exp. Terrain Scan Processor (x1) 14487 | -5/Factory | Identified Deep Network Scanner 14817 | -5/Factory | Discovered new exit (range 22) 14964 | -5/Factory | Repaired Arm. Huge Wheel 14981 | -5/Factory | Repaired Arm. Wheel 15294 | -5/Factory | Identified Quantum Router 15294 | -5/Factory | Identified Mobile Refinery Mk. CCLXVII 15542 | -5/Factory | Discovered new exit (range 24) 15730 | -5/Factory | Central database locked down 16074 | -5/Factory | Entered Upper Caves 16074 | -5/Upper Caves | Accompanied by 1 ally 16192 | -5/Upper Caves | Learned Factory stockpile data 16398 | -5/Upper Caves | Attracted the attention of an 0b10 checkpoint 16441 | -5/Upper Caves | Spotted B-75 Beast 16493 | -5/Upper Caves | Discovered new exit (range 12) 16572 | -5/Upper Caves | Entered another Upper Caves area 16576 | -5/Upper Caves | Discovered new exit (range 22) 16831 | -5/Upper Caves | Learned location of 1 exit from Proximity Caves 17112 | -5/Upper Caves | Spotted B-75 Beast 17152 | -5/Upper Caves | Discovered new exit (range 9) 17199 | -5/Upper Caves | Acquired the password to a Derelict Tinkerer's latest research 17206 | -5/Upper Caves | Found Prototype Special Weapon 17233 | -5/Upper Caves | Entered Zhirov 17234 | -5/Zhirov | Identified Molecular Deconstructor 17238 | -5/Zhirov | Discovered new exit (range 4) 17280 | -5/Zhirov | Learned location of Quarantine (-2) 17280 | -5/Zhirov | Learned location of Testing (-3) 17280 | -5/Zhirov | Learned location of Command (-1) 17307 | -5/Zhirov | Found Alien Artifact 17307 | -5/Zhirov | Identified Integrated Reactor 17307 | -5/Zhirov | Installed Integrated Reactor, increased core energy generation (+10) 17323 | -5/Zhirov | Found Alien Artifact 17486 | -5/Zhirov | Entered Proximity Caves 17487 | -4/Proximity Caves | Identified exit to Factory 17498 | -4/Proximity Caves | Attracted the attention of an 0b10 checkpoint 17686 | -4/Proximity Caves | Lost 4 parts (3u1w) 17943 | -4/Proximity Caves | Build established: Hacker-Gunner 17966 | -4/Proximity Caves | Entered Factory 17966 | -4/Factory | Evolved 2 slots: Utility x1, Weapon x1 18095 | -4/Factory | Discovered new exit (range 5) 18209 | -4/Factory | Discovered new exit (range 16) 18382 | -4/Factory | Repaired Imp. Utility Shielding 18427 | -4/Factory | Repaired Arm. Huge Wheel 18550 | -4/Factory | Garrison activated, responded to threat 18660 | -4/Factory | Fabricated Exp. Terrain Scanner (x1) 18773 | -4/Factory | System corruption reached 10% 18923 | -4/Factory | Identified exit to Upper Caves 18923 | -4/Factory | Identified exit to Extension 18992 | -4/Factory | First assault squad dispatched 19094 | -4/Factory | Entered Extension 19119 | -4/Extension | Lost 5 parts (1p1n3w) 19136 | -4/Extension | Rescued a captive Derelict 19350 | -4/Extension | Rescued a captive Derelict 19467 | -4/Extension | Rescued a captive Derelict 19476 | -4/Extension | Rescued a captive Derelict 19476 | -4/Extension | Rescued a captive Derelict 19594 | -4/Extension | First assault squad dispatched 19601 | -4/Extension | Rescued a captive Derelict 19602 | -4/Extension | Rescued a captive Derelict 19833 | -4/Extension | Build established: Hacker-Tank 20176 | -4/Extension | Destroyed 7 combat bots 20180 | -4/Extension | Crushed by falling debris 20211 | -4/Extension | Lost 5 parts (1n3u1w) 20212 | -4/Extension | Rescued a captive Derelict 20221 | -4/Extension | Rescued a captive Derelict 20221 | -4/Extension | Rescued a captive Derelict 20289 | -4/Extension | Rescued a captive Derelict 20290 | -4/Extension | Rescued a captive Derelict 20337 | -4/Extension | Rescued A7 20496 | -4/Extension | Rescued a captive Derelict 20498 | -4/Extension | Rescued a captive Derelict 20557 | -4/Extension | Discovered new exit (range 10) 20558 | -4/Extension | Discovered new exit (range 6) 20837 | -4/Extension | Build established: Hacker-Skirmisher 21408 | -4/Extension | Entered Cetus 21408 | -4/Cetus | Accompanied by 8 allies (A7) 21413 | -4/Cetus | Acquired a Cetus Manufacturing Module code from A7 21427 | -4/Cetus | Spotted Cetus Guard 21427 | -4/Cetus | Spotted Cetus Guard 21427 | -4/Cetus | Spotted Cetus Guard 21428 | -4/Cetus | Spotted Cetus Guard 21438 | -4/Cetus | Allies destroyed Cetus Guard 21443 | -4/Cetus | Destroyed Cetus Guard 21443 | -4/Cetus | Allies destroyed Cetus Guard 21448 | -4/Cetus | Allies destroyed Cetus Guard 21490 | -4/Cetus | Started Cetus Manufacturing Module 21499 | -4/Cetus | Escorted A7 to Cetus Mainframe 21515 | -4/Cetus | Manufactured an Enhanced Grunt 21521 | -4/Cetus | Discovered new exit (range 16) 21540 | -4/Cetus | Manufactured an Enhanced Grunt 21555 | -4/Cetus | Destroyed Cetus Guard 21558 | -4/Cetus | Spotted Cetus Guard 21559 | -4/Cetus | Spotted Cetus Guard 21564 | -4/Cetus | Destroyed Cetus Guard 21565 | -4/Cetus | Manufactured an Enhanced Grunt 21573 | -4/Cetus | Discovered new exit (range 16) 21573 | -4/Cetus | Allies destroyed Cetus Guard 21582 | -4/Cetus | Met Revision 17 21590 | -4/Cetus | Manufactured an Enhanced Grunt 21615 | -4/Cetus | Manufactured an Enhanced Grunt 21720 | -4/Cetus | Destroyed A7 21724 | -4/Cetus | Extracted ID and sensor layout for unrecognized location from A7's data core 21753 | -4/Cetus | Entered Archives 21753 | -4/Archives | Accompanied by 9 allies 21767 | -4/Archives | Met Zhirov 21773 | -4/Archives | Reinforcements dispatched to Archives 21793 | -4/Archives | Read partially decrypted archive contents 21797 | -4/Archives | Discovered new exit (range 13) 21818 | -4/Archives | Reinforcements dispatched to Archives 21827 | -4/Archives | Entered Hub_04(d) 21827 | -4/Hub_04(d) | Accompanied by 1 ally 21873 | -4/Hub_04(d) | Discovered new exit (range 30) 21934 | -4/Hub_04(d) | Central database locked down 22049 | -4/Hub_04(d) | Discovered new exit (range 24) 22076 | -4/Hub_04(d) | Network Hub disabled 22076 | -4/Hub_04(d) | Spotted Lightning 22076 | -4/Hub_04(d) | Spotted Lightning 22076 | -4/Hub_04(d) | Spotted Lightning 22076 | -4/Hub_04(d) | Spotted Lightning 22076 | -4/Hub_04(d) | Spotted Lightning 22076 | -4/Hub_04(d) | Spotted Lightning 22076 | -4/Hub_04(d) | Spotted Lightning 22076 | -4/Hub_04(d) | Spotted Lightning 22077 | -4/Hub_04(d) | Spotted Lightning 22101 | -4/Hub_04(d) | Network Hub disabled 22101 | -4/Hub_04(d) | Spotted Lightning 22101 | -4/Hub_04(d) | Spotted Lightning 22101 | -4/Hub_04(d) | Spotted Lightning 22113 | -4/Hub_04(d) | Entered Research 22113 | -3/Research | Evolved 2 slots: Utility x2 22143 | -3/Research | Lost 8 parts (1p1n2u4w) 22278 | -3/Research | Found Antimissile System 22313 | -3/Research | Revision forces began assault on 0b10 22330 | -3/Research | Met up with Revision 17++ 22385 | -3/Research | Identified Transdimensional Reconstructor 22604 | -3/Research | Fabricated Centrium Wheel (x2) 22607 | -3/Research | Repaired Imp. KE Penetrator 22648 | -3/Research | Repaired Adv. Cooling System 22771 | -3/Research | Identified exit to Armory 22771 | -3/Research | Identified exit to Testing 22813 | -3/Research | Research terminal network offline 23001 | -3/Research | Entered Armory 23001 | -3/Armory | Accompanied by 1 ally 23309 | -3/Armory | Destroyed 7 combat bots 23397 | -3/Armory | Fabricated Hcp. Storage Unit (x1) 23423 | -3/Armory | Fabricated Centrium Wheel? 23579 | -3/Armory | Discovered new exit (range 27) 23862 | -3/Armory | Found Prototype Device 23862 | -3/Armory | Identified System Purifier 23885 | -3/Armory | Discovered new exit (range 20) 23892 | -3/Armory | Discovered new exit (range 20) 24073 | -3/Armory | Found Gamma Bomb Array 24110 | -3/Armory | Entered Lab 24110 | -3/Lab | Discovered new exit (range 9) 24123 | -3/Lab | Hidden lab's door opened automatically 24123 | -3/Lab | Sensor layout match revealed 24124 | -3/Lab | Gained access to the hidden lab's interior 24239 | -3/Lab | Build established: Hacker-Mutant 24263 | -3/Lab | Found Deep Network Scanner 24267 | -3/Lab | Found Prototype Device 24267 | -3/Lab | Identified AEGIS Remote Shield 24271 | -3/Lab | Found Prototype Energy Cannon 24271 | -3/Lab | Identified Warp Cannon 24275 | -3/Lab | Found Prototype Energy Gun 24275 | -3/Lab | Identified Hyp. EM Gauss Rifle 24321 | -3/Lab | Found Alien Artifact 24328 | -3/Lab | Found Alien Artifact 24340 | -3/Lab | Found Transdimensional Reconstructor 24476 | -3/Lab | Entered Research 24476 | -2/Research | Evolved 2 slots: Utility x2 24491 | -2/Research | Identified exit to Access 24508 | -2/Research | Identified Core Regenerator 24508 | -2/Research | Identified Integrated Dissipator 24913 | -2/Research | Lost 6 parts (1n3u2w) 24954 | -2/Research | Installed Integrated Dissipator, increased core heat dissipation (+20) 24998 | -2/Research | Discovered new exit (range 30) 25263 | -2/Research | Fabricated Hdn. Centrium Wheel (x1) 25350 | -2/Research | Destroyed 7 combat bots 25371 | -2/Research | Local fabrication network quarantined 25472 | -2/Research | Entered Access 25472 | -1/Access | Evolved 2 slots: Power x1, Utility x1 25604 | -1/Access | Discovered new exit (range 27) 25655 | *** | Escaped! Last Messages --------------- Testing... Tracking enabled and active. >>Alert(Check) Current Alert Level: 2-B 25604_ EXIT=FOUND 25617_ Connecting with Terminal... >>Trojan(Botnet) Trojan loaded successfully. Testing... Terminal linked with 1 system. Awaiting botnet instructions. >>Index(Fabricators) Found 4 fabricators. Downloaded coordinate data. 25622_ U-05 Engineer builds a Wall. 25646_ Connecting with Terminal... >>Open Sealed Barrier opened. 25649_ The Access Shell folds into the floor. [Achievement: Mad Max] Map ----- +----------------------------------------------------+ | ????????????? ?? ? ??# ???? ???????? ??????????? | | ?????????#????? ??????#? ? ?? ? "??? ? ??????????? | | ???????? ???? "" ?? ???? # ? ?? ?#???????? | | ?????? ???"???"""?"?? #?? ??? ??? ???#???????? | | ??????????"T ?""??"" ?# ?#??? ?? ? ??#??? ????? | | ????? ????"" ?? # ?#? ? ? ??#?? ? ???? | | ???????#?#""?? ?" +? # ? ?? ? ? ???#?????? | | ??? ???? + ? ? # ? # ? ? ???#?# ???? | | ???o ??###? ? ? #?###??#?#?#?#### ? ??? | | ??? ??##?#######??##?# ? ##?#?#?# ??? ? | | ??? #### ### ##### ???#? ? ?? | | ??# ?#### ### #####? ? ?#??##?? | | ? #??#### ? ### ##### # # ? | | ? # #### " ### #?##? ?? ?? / ?# | | # ####""" ### BB BB ##### ??? ?#?? | | # #?## """ ### BB BB ?#### ?# ? ?? | | # #### " ### ##### # ?? ? | | ### #### ###""""""""""##### #? #?? | | ### #### ###""""""""""#########??###??#?#? | | ### #######+#######""""""""""#############? #? ? | | ### ###### #######""""""""""###### ? #?? | | ### ###### ####### ###### # ? | | ### ###### ####### ###### # | | ### ###### ####### ###### ?? | | ### ###### ####### "" ####?# ? # ? | | ### ###### ####### "@ ######"" # | | ### ###### ####### ######"" #? ? | | ### ##### ###### ######"T + | | ###### ######"" w ###? | | ###### ######"" #### | | ########## ##### ##### #?## | | ##### #######"" ###### ? | | ##### #######"" ###### | | "" ##### #######"" ###### #####+##### | | "" ##### #######T ###### # | | "" ##### #######"" ###### # | | "" ##### #######"" ###### # ? | | "" ##### #######"" ###### # "" | | ##### # """" | | ##### # """" | | #####t############################ """" | | ######"########################### """"? | | ####### """T""" ############## """" | | ############# """ """ ############## "" | | """""""""" #u ############## "" | | """"T"""" # ! ############## ? | | # """""" ############## | | # """""" # ############?###+ | | % # """""" ###### ################ | | # """""" ###### ##### ####? | +----------------------------------------------------+ Best States ------------- Heat Dissipation 103 Coolant Potential 100 Energy Generation 55 Energy Capacity 1150 Matter Stores 300 Matter Capacity 800 Sight Range 16 Robot Scan Range 16 Terrain Scan Range 30 Terrain Scan Density 1010 Base Temperature (-) 150 Armor Coverage 625 Resistance: TH 30 Resistance: EM 25 Propulsion Shielding 90 Utility Shielding 66 Reclamation Efficiency 15 Weapon Cycling 20 Evasion (%) 42 Targeting Accuracy 14 Melee Accuracy 16 Recoil Reduction 6 Particle Charging 30 Salvage Targeting 2 Offensive Hacking 50 Defensive Hacking 25 Item Schematics ----------------- Hacking Suite | -9/Materials | Scanalyzed Imp. EM Shotgun | -9/Materials | Scanalyzed Hcp. Storage Unit | -9/Materials | Scanalyzed Hvy. Armor Plating | -9/Materials | Scanalyzed Arm. Huge Wheel | -7/Factory | Scanalyzed Combat Drone Bay | -7/Data Miner | Free Lgt. Regenerative Plating | -7/Data Miner | Free Exp. Terrain Scanner | -7/Data Miner | Free Plasma Sword | -7/Data Miner | Free Kinetic Spear | -7/Data Miner | Free Exp. Terrain Scan Processor | -6/Factory | Hacked Exp. Utility Shielding | -6/Factory | Hacked Arm. Wheel | -5/Factory | Scanalyzed Powered Armor | -5/Factory | Scanalyzed Imp. Powered Armor | -5/Factory | Hacked Lyr. Heavy Armor Plating | -5/Factory | Hacked Imp. Weapon Cycler | -5/Factory | Hacked Hvy. Neutron Cannon | -5/Factory | Hacked Assault Drone Bay | -5/Zhirov | Free Exp. Heat Sink | -5/Zhirov | Free Exp. Optical Array | -5/Zhirov | Free Imp. Arc Thrower | -5/Zhirov | Free Quantum Capacitor | -4/Hub_04(d) | Hacked Centrium Wheel | -4/Hub_04(d) | Hacked Adv. Coolant Injector | -3/Research | Scanalyzed Enh. Nova Cannon | -3/Armory | Hacked Lgt. Quantum Reactor | -3/Armory | Hacked Adv. Powered Armor | -3/Armory | Hacked Hdn. Centrium Wheel | -2/Research | Hacked Robot Schematics ------------------ S-27 Virus | -7/Data Miner | Free G-50 Soldier | -7/Data Miner | Free L-41 Fighter | -7/Data Miner | Free I-36 Angel | -7/Data Miner | Free Fabricated ------------ Arm. Huge Wheel | x2 | -6/Factory Exp. Terrain Scan Processor | x1 | -5/Factory Exp. Terrain Scanner | x1 | -4/Factory Centrium Wheel | x2 | -3/Research Hcp. Storage Unit | x1 | -3/Armory Centrium Wheel | x2 | -3/Armory Hdn. Centrium Wheel | x1 | -2/Research Alien Tech Used ----------------- Integrated Reactor Integrated Dissipator Achievements -------------- Mad Max Challenges ------------ None Game ------ Seed SniperOpticalSource Manual? 0 Play Time 09:15:01 Cumulative 209.6 hours Start 2022.01.15 @ 23:28:58 End 2022.01.19 @ 10:51:56 Sessions 13 Manual Loads 0 Difficulty Rogue Special Mode None Game No. 46 Rogue 46 Adventurer 0 Explorer 0 Win Type 0 Total 10 Types 7/2/0/0/0/0/1/0/0 Lore% 86 Gallery% 80 Achievement% 68 Wizard Run 0 Options --------- ASCII 0 Keyboard 0 Movement Vi Keybinds 0 Fullscreen 1 Font 36/Smallcaps Map View 76x50 Tactical HUD 1 Map Filters NONE Filters NONE Steam 1 RUN: 8b1d1395-6be0-4add-aa5d-799067c75d66